[Event "Early-Titled-Tuesday-Blitz-January-23-2024"]
[Site "Chess.com"]
[Date "2024.01.23"]
[Round "5"]
[White "Aygehovit1992"]
[Black "masterofpuppets2"]
[Result "1-0"]
[WhiteElo "2708"]
[BlackElo "2511"]
[TimeControl "180+1"]
[EndTime "8:54:46 PST"]
[Termination "Aygehovit1992 won on time"]

1. e4 {[%clk 0:03:00.9]} 1... c5 {[%clk 0:02:56]} 2. Nc3 {[%clk 0:02:59.7]} 2...
Nc6 {[%clk 0:02:55.5]} 3. Bb5 {[%clk 0:02:58.8]} 3... Nd4 {[%clk 0:02:53.3]} 4.
Nf3 {[%clk 0:02:58.7]} 4... e6 {[%clk 0:02:50.1]} 5. O-O {[%clk 0:02:58.4]} 5...
a6 {[%clk 0:02:47.4]} 6. Bd3 {[%clk 0:02:58.6]} 6... Nc6 {[%clk 0:02:44.3]} 7.
b3 {[%clk 0:02:58.7]} 7... d6 {[%clk 0:02:35.1]} 8. Bb2 {[%clk 0:02:57.6]} 8...
Nf6 {[%clk 0:02:35.7]} 9. Re1 {[%clk 0:02:54.9]} 9... Be7 {[%clk 0:02:35.8]} 10.
e5 {[%clk 0:02:53.8]} 10... dxe5 {[%clk 0:02:35]} 11. Nxe5 {[%clk 0:02:54.7]}
11... Nd4 {[%clk 0:02:31.3]} 12. Ne4 {[%clk 0:02:42.4]} 12... O-O {[%clk
0:02:29.3]} 13. Ng5 {[%clk 0:02:16.6]} 13... h6 {[%clk 0:02:23.7]} 14. Ngf3
{[%clk 0:02:14.3]} 14... Nb5 {[%clk 0:01:56.7]} 15. Qe2 {[%clk 0:02:03.7]} 15...
Nd6 {[%clk 0:01:35.7]} 16. h3 {[%clk 0:01:58.3]} 16... Nd5 {[%clk 0:01:34.9]}
17. g3 {[%clk 0:01:50.1]} 17... Qc7 {[%clk 0:01:34.2]} 18. a3 {[%clk 0:01:47.9]}
18... b6 {[%clk 0:01:34.2]} 19. c4 {[%clk 0:01:47.7]} 19... Nf6 {[%clk
0:01:30.8]} 20. Ng4 {[%clk 0:01:44.9]} 20... Nxg4 {[%clk 0:01:07.4]} 21. hxg4
{[%clk 0:01:45.8]} 21... Bb7 {[%clk 0:01:08]} 22. Ne5 {[%clk 0:01:46.1]} 22...
Rad8 {[%clk 0:01:02.5]} 23. Bc2 {[%clk 0:01:41]} 23... Ba8 {[%clk 0:00:59]} 24.
f4 {[%clk 0:01:39.9]} 24... Qb7 {[%clk 0:00:56.9]} 25. Kh2 {[%clk 0:01:39.7]}
25... Rfe8 {[%clk 0:00:52.9]} 26. Rf1 {[%clk 0:01:11.9]} 26... b5 {[%clk
0:00:52]} 27. cxb5 {[%clk 0:01:09.6]} 27... axb5 {[%clk 0:00:51.9]} 28. Rae1
{[%clk 0:01:09.6]} 28... Qd5 {[%clk 0:00:44.4]} 29. Kh3 {[%clk 0:01:02.1]} 29...
c4 {[%clk 0:00:36.2]} 30. b4 {[%clk 0:01:00.1]} 30... Nc8 {[%clk 0:00:30.6]} 31.
Rf2 {[%clk 0:00:59.4]} 31... Nd6 {[%clk 0:00:29.9]} 32. Bc3 {[%clk 0:00:58.3]}
32... Bb7 {[%clk 0:00:29.2]} 33. Rh2 {[%clk 0:00:56.6]} 33... Ra8 {[%clk
0:00:28.4]} 34. Reh1 {[%clk 0:00:49.1]} 34... Rxa3 {[%clk 0:00:26.7]} 35. g5
{[%clk 0:00:46.8]} 35... Ne4 {[%clk 0:00:10.2]} 36. gxh6 {[%clk 0:00:43.7]}
36... g6 {[%clk 0:00:09.2]} 37. h7+ {[%clk 0:00:42.8]} 1-0

[Event "Early-Titled-Tuesday-Blitz-January-23-2024"]
[Site "Chess.com"]
[Date "2024.01.23"]
[Round "5"]
[White "margarita_2703"]
[Black "Nellichka"]
[Result "1-0"]
[WhiteElo "2278"]
[BlackElo "1936"]
[TimeControl "180+1"]
[EndTime "8:54:49 PST"]
[Termination "margarita_2703 won on time"]

1. e4 {[%clk 0:03:00.9]} 1... e6 {[%clk 0:02:56.1]} 2. d4 {[%clk 0:02:57.7]}
2... d5 {[%clk 0:02:55.7]} 3. e5 {[%clk 0:02:58.2]} 3... c5 {[%clk 0:02:55.3]}
4. c3 {[%clk 0:02:58.7]} 4... Nc6 {[%clk 0:02:54.7]} 5. Nf3 {[%clk 0:02:57]}
5... Qb6 {[%clk 0:02:53.3]} 6. Na3 {[%clk 0:02:55.9]} 6... cxd4 {[%clk
0:02:47.9]} 7. cxd4 {[%clk 0:02:56.8]} 7... Nge7 {[%clk 0:02:37.6]} 8. Nc2
{[%clk 0:02:54.1]} 8... Nf5 {[%clk 0:02:35.1]} 9. Be2 {[%clk 0:02:49.9]} 9...
Bb4+ {[%clk 0:02:33.6]} 10. Kf1 {[%clk 0:02:49.6]} 10... h5 {[%clk 0:02:23]} 11.
h4 {[%clk 0:02:48.4]} 11... a5 {[%clk 0:02:16.6]} 12. g3 {[%clk 0:02:47.3]}
12... Bd7 {[%clk 0:02:14]} 13. Kg2 {[%clk 0:02:47.6]} 13... Rc8 {[%clk
0:02:06.4]} 14. Bg5 {[%clk 0:02:34.8]} 14... a4 {[%clk 0:02:03.6]} 15. Rc1
{[%clk 0:02:30.3]} 15... Be7 {[%clk 0:01:35]} 16. Rb1 {[%clk 0:02:19.8]} 16...
Na5 {[%clk 0:01:33.2]} 17. Ne3 {[%clk 0:02:13.4]} 17... Nc4 {[%clk 0:01:20.9]}
18. Nxf5 {[%clk 0:02:10.9]} 18... exf5 {[%clk 0:01:20.1]} 19. Bxe7 {[%clk
0:02:09.9]} 19... Kxe7 {[%clk 0:01:18.7]} 20. Bxc4 {[%clk 0:02:09.6]} 20... Rxc4
{[%clk 0:01:14.5]} 21. Qd2 {[%clk 0:02:08.6]} 21... f6 {[%clk 0:01:07.1]} 22.
exf6+ {[%clk 0:01:59.9]} 22... gxf6 {[%clk 0:01:06.7]} 23. Rhe1+ {[%clk
0:01:50.8]} 23... Kf7 {[%clk 0:01:06]} 24. b3 {[%clk 0:01:50]} 24... axb3 {[%clk
0:00:59.2]} 25. axb3 {[%clk 0:01:50.9]} 25... Rc7 {[%clk 0:00:49.8]} 26. Rbc1
{[%clk 0:01:47.8]} 26... Rxc1 {[%clk 0:00:40]} 27. Rxc1 {[%clk 0:01:48.7]} 27...
Bc6 {[%clk 0:00:39.9]} 28. Qf4 {[%clk 0:01:46.7]} 28... Qxb3 {[%clk 0:00:33.5]}
29. Qxf5 {[%clk 0:01:45.2]} 29... Qb2 {[%clk 0:00:28.4]} 30. Re1 {[%clk
0:01:42.6]} 30... Qb4 {[%clk 0:00:16.2]} 31. Ng5+ {[%clk 0:01:39.1]} 31... Kg7
{[%clk 0:00:14.4]} 32. Re6 {[%clk 0:01:35.7]} 32... Qf8 {[%clk 0:00:13.4]} 33.
Nh3 {[%clk 0:01:30.4]} 33... Qf7 {[%clk 0:00:12.3]} 34. Nf4 {[%clk 0:01:30.7]}
34... Bd7 {[%clk 0:00:11.5]} 35. Qxd5 {[%clk 0:01:24]} 35... Bxe6 {[%clk
0:00:10.7]} 36. Nxe6+ {[%clk 0:01:24.9]} 36... Kg8 {[%clk 0:00:10.9]} 37. Qf5
{[%clk 0:01:21]} 37... Rh7 {[%clk 0:00:07.4]} 38. d5 {[%clk 0:01:19.8]} 38...
Qd7 {[%clk 0:00:05.2]} 39. Qg6+ {[%clk 0:01:19.3]} 39... Kh8 {[%clk 0:00:04.1]}
40. Qxh7+ {[%clk 0:01:18.4]} 40... Qxh7 {[%clk 0:00:03.1]} 41. Nf4 {[%clk
0:01:16.7]} 41... Qd7 {[%clk 0:00:03]} 42. Kf3 {[%clk 0:01:16.6]} 42... b5
{[%clk 0:00:02.5]} 43. Ke4 {[%clk 0:01:17.1]} 43... b4 {[%clk 0:00:02.6]} 44.
Kd4 {[%clk 0:01:17.5]} 44... b3 {[%clk 0:00:03]} 45. Kc3 {[%clk 0:01:17.8]}
45... Qb5 {[%clk 0:00:03.1]} 46. Kb2 {[%clk 0:01:18.1]} 46... Qc5 {[%clk
0:00:02.2]} 47. Kxb3 {[%clk 0:01:17.6]} 47... Qxf2 {[%clk 0:00:02.3]} 48. Kc4
{[%clk 0:01:17.3]} 48... Qxg3 {[%clk 0:00:02.1]} 49. Ne6 {[%clk 0:01:17.6]}
49... Qg4+ {[%clk 0:00:01.6]} 50. Kc5 {[%clk 0:01:17.7]} 50... Qxh4 {[%clk
0:00:01.3]} 51. d6 {[%clk 0:01:18]} 1-0

[Event "Early-Titled-Tuesday-Blitz-January-23-2024"]
[Site "Chess.com"]
[Date "2024.01.23"]
[Round "5"]
[White "Alenzer"]
[Black "GlavkonVVS"]
[Result "0-1"]
[WhiteElo "2169"]
[BlackElo "2480"]
[TimeControl "180+1"]
[EndTime "8:54:50 PST"]
[Termination "GlavkonVVS won on time"]

1. e4 {[%clk 0:03:00.9]} 1... Nf6 {[%clk 0:02:58.5]} 2. e5 {[%clk 0:03:00.8]}
2... Nd5 {[%clk 0:02:58.6]} 3. d4 {[%clk 0:03:00.5]} 3... d6 {[%clk 0:02:58.9]}
4. Bc4 {[%clk 0:02:59.3]} 4... Nb6 {[%clk 0:02:52.9]} 5. Bb3 {[%clk 0:02:57.9]}
5... a5 {[%clk 0:02:51]} 6. a3 {[%clk 0:02:45.8]} 6... a4 {[%clk 0:02:49.8]} 7.
Ba2 {[%clk 0:02:45.5]} 7... dxe5 {[%clk 0:02:50.2]} 8. Qh5 {[%clk 0:02:44.6]}
8... e6 {[%clk 0:02:49.8]} 9. dxe5 {[%clk 0:02:44.3]} 9... c5 {[%clk 0:02:47.5]}
10. Nf3 {[%clk 0:02:38.7]} 10... Nc6 {[%clk 0:02:43.6]} 11. Nc3 {[%clk
0:02:25.2]} 11... g6 {[%clk 0:02:43]} 12. Qg4 {[%clk 0:02:23.4]} 12... Bg7
{[%clk 0:02:37.5]} 13. Bg5 {[%clk 0:01:29.9]} 13... Qd7 {[%clk 0:02:25]} 14. Rd1
{[%clk 0:01:15.5]} 14... Nd5 {[%clk 0:02:24.5]} 15. Bxd5 {[%clk 0:00:36.9]}
15... exd5 {[%clk 0:02:24.4]} 16. Qxd7+ {[%clk 0:00:36.6]} 16... Bxd7 {[%clk
0:02:24.5]} 17. Nxd5 {[%clk 0:00:36.8]} 17... O-O {[%clk 0:01:56.2]} 18. Nc7
{[%clk 0:00:34.5]} 18... Bf5 {[%clk 0:01:55.2]} 19. Nxa8 {[%clk 0:00:33.5]}
19... Rxa8 {[%clk 0:01:54.8]} 20. c3 {[%clk 0:00:32.1]} 20... Nxe5 {[%clk
0:01:52.6]} 21. Nxe5 {[%clk 0:00:30]} 21... Bxe5 {[%clk 0:01:52.7]} 22. O-O
{[%clk 0:00:30.1]} 22... f6 {[%clk 0:01:49.7]} 23. Be3 {[%clk 0:00:30.1]} 23...
b6 {[%clk 0:01:49.5]} 24. f3 {[%clk 0:00:28.1]} 24... Re8 {[%clk 0:01:48.2]} 25.
Rfe1 {[%clk 0:00:28]} 25... Bc2 {[%clk 0:01:46.4]} 26. Rd7 {[%clk 0:00:27.6]}
26... Bf4 {[%clk 0:01:38.6]} 27. Bf2 {[%clk 0:00:23.8]} 27... Rxe1+ {[%clk
0:01:36.7]} 28. Bxe1 {[%clk 0:00:24]} 28... Bc1 {[%clk 0:01:37.2]} 29. Rd6
{[%clk 0:00:17.1]} 29... Bxb2 {[%clk 0:01:32.1]} 30. Rxb6 {[%clk 0:00:17.3]}
30... Bxa3 {[%clk 0:01:29.9]} 31. Rxf6 {[%clk 0:00:17.3]} 31... Bb3 {[%clk
0:01:30]} 32. Ra6 {[%clk 0:00:14.7]} 32... c4 {[%clk 0:01:28.5]} 33. Bf2 {[%clk
0:00:12.5]} 33... Bb2 {[%clk 0:01:27.8]} 34. Ra5 {[%clk 0:00:09]} 34... a3
{[%clk 0:01:27.4]} 35. Bd4 {[%clk 0:00:05.6]} 35... a2 {[%clk 0:01:27.2]} 36.
Ra8+ {[%clk 0:00:05]} 36... Kf7 {[%clk 0:01:27.2]} 37. Ra7+ {[%clk 0:00:05.6]}
37... Ke6 {[%clk 0:01:27.6]} 38. Ra6+ {[%clk 0:00:05]} 38... Kd7 {[%clk
0:01:27.8]} 39. Ra7+ {[%clk 0:00:05]} 39... Kc6 {[%clk 0:01:27.5]} 40. Ra6+
{[%clk 0:00:04.8]} 40... Kb7 {[%clk 0:01:26.6]} 41. Ra7+ {[%clk 0:00:05]} 41...
Kb8 {[%clk 0:01:26.9]} 42. Rxa2 {[%clk 0:00:03.9]} 42... Bxa2 {[%clk 0:01:26.8]}
43. Kf2 {[%clk 0:00:04.6]} 43... Kc7 {[%clk 0:01:26.5]} 44. Ke3 {[%clk 0:00:05]}
44... Kd6 {[%clk 0:01:26.9]} 45. f4 {[%clk 0:00:05.3]} 45... Bb1 {[%clk
0:01:27.1]} 46. g4 {[%clk 0:00:05.3]} 46... Ke6 {[%clk 0:01:27.1]} 47. h3 {[%clk
0:00:05.2]} 47... Bc2 {[%clk 0:01:26.8]} 48. Be5 {[%clk 0:00:05.2]} 48... Bc1+
{[%clk 0:01:26.1]} 49. Kd4 {[%clk 0:00:04.6]} 49... Bd3 {[%clk 0:01:26.3]} 50.
Kc5 {[%clk 0:00:03.1]} 50... Be3+ {[%clk 0:01:26]} 51. Kb4 {[%clk 0:00:02.7]}
51... h5 {[%clk 0:01:24.9]} 52. gxh5 {[%clk 0:00:02.5]} 52... gxh5 {[%clk
0:01:25.2]} 53. Kb5 {[%clk 0:00:02.6]} 53... Kf5 {[%clk 0:01:25.6]} 54. Kc6
{[%clk 0:00:02.5]} 54... Bf1 {[%clk 0:01:25.5]} 55. h4 {[%clk 0:00:01.5]} 55...
Bxf4 {[%clk 0:01:24.5]} 0-1

[Event "Early-Titled-Tuesday-Blitz-January-23-2024"]
[Site "Chess.com"]
[Date "2024.01.23"]
[Round "5"]
[White "Matols"]
[Black "olawsson"]
[Result "0-1"]
[WhiteElo "2369"]
[BlackElo "2170"]
[TimeControl "180+1"]
[EndTime "8:54:50 PST"]
[Termination "olawsson won by checkmate"]

1. d4 {[%clk 0:03:00.9]} 1... d6 {[%clk 0:02:56.6]} 2. Nf3 {[%clk 0:03:00.1]}
2... g6 {[%clk 0:02:53]} 3. g3 {[%clk 0:03:00.4]} 3... Bg7 {[%clk 0:02:53.2]} 4.
Bg2 {[%clk 0:03:01.1]} 4... Nf6 {[%clk 0:02:52.9]} 5. O-O {[%clk 0:02:59.6]}
5... O-O {[%clk 0:02:53.1]} 6. c4 {[%clk 0:03:00.1]} 6... c6 {[%clk 0:02:53.1]}
7. Nc3 {[%clk 0:03:00.4]} 7... Qa5 {[%clk 0:02:53]} 8. h3 {[%clk 0:02:53.5]}
8... h6 {[%clk 0:02:50.8]} 9. Re1 {[%clk 0:02:36.1]} 9... e5 {[%clk 0:02:49.9]}
10. e4 {[%clk 0:02:31.4]} 10... Nbd7 {[%clk 0:02:43]} 11. Be3 {[%clk 0:02:22.9]}
11... exd4 {[%clk 0:02:34.8]} 12. Nxd4 {[%clk 0:02:22]} 12... Ne5 {[%clk
0:02:35.5]} 13. Nb3 {[%clk 0:02:01.3]} 13... Qb4 {[%clk 0:02:03.3]} 14. c5
{[%clk 0:02:00.1]} 14... Nc4 {[%clk 0:01:53.4]} 15. cxd6 {[%clk 0:01:56.8]}
15... Nxb2 {[%clk 0:01:26.2]} 16. Qc2 {[%clk 0:01:54.4]} 16... Nc4 {[%clk
0:01:23.9]} 17. Bc5 {[%clk 0:01:53.7]} 17... Na3 {[%clk 0:00:54.7]} 18. Qd3
{[%clk 0:01:52.8]} 18... Qc4 {[%clk 0:00:53.7]} 19. Qxc4 {[%clk 0:01:31.5]}
19... Nxc4 {[%clk 0:00:53.1]} 20. d7 {[%clk 0:01:31.5]} 20... Nxd7 {[%clk
0:00:44.2]} 21. Rac1 {[%clk 0:01:12.5]} 21... Nxc5 {[%clk 0:00:41.9]} 22. Nxc5
{[%clk 0:01:13.4]} 22... Ne5 {[%clk 0:00:23.7]} 23. f4 {[%clk 0:01:11]} 23... b6
{[%clk 0:00:17.1]} 24. fxe5 {[%clk 0:01:02.2]} 24... bxc5 {[%clk 0:00:16.3]} 25.
Na4 {[%clk 0:01:01.6]} 25... Bxe5 {[%clk 0:00:12.8]} 26. Nxc5 {[%clk 0:01:01.5]}
26... Bxg3 {[%clk 0:00:12.7]} 27. Rf1 {[%clk 0:01:00]} 27... Be5 {[%clk
0:00:03.4]} 28. Rfd1 {[%clk 0:00:52.8]} 28... Rb8 {[%clk 0:00:03.3]} 29. Nd7
{[%clk 0:00:48.7]} 29... Bxd7 {[%clk 0:00:03.6]} 30. Rxd7 {[%clk 0:00:49.1]}
30... Rb2 {[%clk 0:00:04.5]} 31. Rxc6 {[%clk 0:00:44.9]} 31... Rxa2 {[%clk
0:00:04]} 32. Bf1 {[%clk 0:00:42.5]} 32... Rb8 {[%clk 0:00:03.7]} 33. Rxf7
{[%clk 0:00:36.5]} 33... Rb1 {[%clk 0:00:02]} 34. Re7 {[%clk 0:00:32.8]} 34...
Bh2+ {[%clk 0:00:01.9]} 35. Kh1 {[%clk 0:00:31.3]} 35... Rxf1# {[%clk
0:00:02.6]} 0-1

[Event "Early-Titled-Tuesday-Blitz-January-23-2024"]
[Site "Chess.com"]
[Date "2024.01.23"]
[Round "5"]
[White "GothamChess"]
[Black "Zq1"]
[Result "1-0"]
[WhiteElo "2747"]
[BlackElo "2519"]
[TimeControl "180+1"]
[EndTime "8:54:51 PST"]
[Termination "GothamChess won by resignation"]

1. e4 {[%clk 0:03:00.9]} 1... c5 {[%clk 0:02:57.9]} 2. Nc3 {[%clk 0:03:00.4]}
2... g6 {[%clk 0:02:56.5]} 3. d4 {[%clk 0:03:00.2]} 3... cxd4 {[%clk 0:02:55.7]}
4. Qxd4 {[%clk 0:03:01.1]} 4... Nf6 {[%clk 0:02:55.2]} 5. Nf3 {[%clk 0:03:00.4]}
5... Nc6 {[%clk 0:02:53]} 6. Qd3 {[%clk 0:03:00.4]} 6... d6 {[%clk 0:02:50]} 7.
Nd5 {[%clk 0:02:58.6]} 7... Bg7 {[%clk 0:02:48.5]} 8. c3 {[%clk 0:02:58.6]} 8...
O-O {[%clk 0:02:45.1]} 9. Bg5 {[%clk 0:02:58.7]} 9... e6 {[%clk 0:02:41.4]} 10.
Nxf6+ {[%clk 0:02:52.9]} 10... Bxf6 {[%clk 0:02:40.6]} 11. Bxf6 {[%clk 0:02:49]}
11... Qxf6 {[%clk 0:02:40.5]} 12. Qxd6 {[%clk 0:02:49.7]} 12... Rd8 {[%clk
0:02:38.2]} 13. Qg3 {[%clk 0:02:41.7]} 13... b6 {[%clk 0:02:29.7]} 14. Be2
{[%clk 0:02:29.5]} 14... Bb7 {[%clk 0:02:27.5]} 15. O-O {[%clk 0:02:25]} 15...
Ne7 {[%clk 0:02:25.5]} 16. e5 {[%clk 0:02:18.6]} 16... Qg7 {[%clk 0:02:08.3]}
17. Nd4 {[%clk 0:02:16.2]} 17... Nf5 {[%clk 0:02:03.5]} 18. Nxf5 {[%clk
0:02:09.6]} 18... gxf5 {[%clk 0:02:03.5]} 19. Rad1 {[%clk 0:02:00.4]} 19... Qxg3
{[%clk 0:01:53.9]} 20. hxg3 {[%clk 0:01:59.5]} 20... Kg7 {[%clk 0:01:32.2]} 21.
f4 {[%clk 0:01:42.7]} 21... Be4 {[%clk 0:01:24.9]} 22. Bf3 {[%clk 0:01:37.5]}
22... Bxf3 {[%clk 0:01:23.1]} 23. gxf3 {[%clk 0:01:38.4]} 23... h5 {[%clk
0:01:18]} 24. Kf2 {[%clk 0:01:37.9]} 24... b5 {[%clk 0:01:14.6]} 25. a3 {[%clk
0:01:30.4]} 25... a5 {[%clk 0:01:13.4]} 26. Ke2 {[%clk 0:01:26.1]} 26... b4
{[%clk 0:01:11.7]} 27. Rxd8 {[%clk 0:01:15.3]} 27... Rxd8 {[%clk 0:01:10.1]} 28.
cxb4 {[%clk 0:01:15.8]} 28... axb4 {[%clk 0:01:08.9]} 29. a4 {[%clk 0:01:16.3]}
29... b3 {[%clk 0:00:56.1]} 30. Rc1 {[%clk 0:01:07.3]} 30... Rd4 {[%clk
0:00:50.6]} 31. Ra1 {[%clk 0:00:23.4]} 31... Rc4 {[%clk 0:00:47.3]} 32. Kd3
{[%clk 0:00:19.9]} 32... Rc2 {[%clk 0:00:47.1]} 33. a5 {[%clk 0:00:20.1]} 33...
Rxb2 {[%clk 0:00:46.5]} 34. Kc3 {[%clk 0:00:20.4]} 34... Rf2 {[%clk 0:00:12]}
35. a6 {[%clk 0:00:20.2]} 35... Rxf3+ {[%clk 0:00:11.8]} 36. Kb2 {[%clk
0:00:20.2]} 1-0

[Event "Early-Titled-Tuesday-Blitz-January-23-2024"]
[Site "Chess.com"]
[Date "2024.01.23"]
[Round "5"]
[White "Rgoltsman"]
[Black "Jojo_898"]
[Result "0-1"]
[WhiteElo "2270"]
[BlackElo "2451"]
[TimeControl "180+1"]
[EndTime "8:54:51 PST"]
[Termination "Jojo_898 won on time"]

1. b3 {[%clk 0:03:00.3]} 1... Nf6 {[%clk 0:02:59.3]} 2. Bb2 {[%clk 0:03:00.3]}
2... e6 {[%clk 0:02:56.9]} 3. e3 {[%clk 0:03:00.6]} 3... b6 {[%clk 0:02:56.1]}
4. f4 {[%clk 0:03:00.2]} 4... Bb7 {[%clk 0:02:56]} 5. Nf3 {[%clk 0:03:00.6]}
5... c5 {[%clk 0:02:55.7]} 6. Be2 {[%clk 0:03:01]} 6... d5 {[%clk 0:02:55.2]} 7.
O-O {[%clk 0:03:00.2]} 7... Be7 {[%clk 0:02:54.8]} 8. Bb5+ {[%clk 0:02:58]} 8...
Nbd7 {[%clk 0:02:51.8]} 9. Ne5 {[%clk 0:02:56.3]} 9... O-O {[%clk 0:02:51.4]}
10. Bxd7 {[%clk 0:02:45.9]} 10... Nxd7 {[%clk 0:02:50.9]} 11. Nxd7 {[%clk
0:02:42.4]} 11... Qxd7 {[%clk 0:02:50.4]} 12. Qg4 {[%clk 0:02:43]} 12... f6
{[%clk 0:02:44.3]} 13. d3 {[%clk 0:02:42.5]} 13... Rac8 {[%clk 0:02:32.3]} 14.
Nd2 {[%clk 0:02:40.2]} 14... b5 {[%clk 0:02:29.7]} 15. a4 {[%clk 0:02:16.2]}
15... c4 {[%clk 0:02:27.5]} 16. dxc4 {[%clk 0:01:41.1]} 16... bxc4 {[%clk
0:02:26.8]} 17. bxc4 {[%clk 0:01:35.3]} 17... dxc4 {[%clk 0:02:25.8]} 18. Nf3
{[%clk 0:01:34.7]} 18... c3 {[%clk 0:02:21.5]} 19. Rad1 {[%clk 0:01:13.6]} 19...
Bxf3 {[%clk 0:01:33.5]} 20. gxf3 {[%clk 0:00:42.1]} 20... Qc6 {[%clk 0:01:29.6]}
21. Bxc3 {[%clk 0:00:18.4]} 21... Qxc3 {[%clk 0:01:24.5]} 22. Qxe6+ {[%clk
0:00:18.5]} 22... Rf7 {[%clk 0:01:24.8]} 23. Rd7 {[%clk 0:00:19]} 23... Re8
{[%clk 0:01:16.3]} 24. Rfd1 {[%clk 0:00:17.6]} 24... Kf8 {[%clk 0:00:59.6]} 25.
Qf5 {[%clk 0:00:09.2]} 25... Qxe3+ {[%clk 0:00:58.1]} 26. Kg2 {[%clk 0:00:08]}
26... Qe2+ {[%clk 0:00:57.2]} 27. Kg3 {[%clk 0:00:08.4]} 27... g6 {[%clk
0:00:46.9]} 28. Qh3 {[%clk 0:00:08.1]} 28... Qxc2 {[%clk 0:00:39.6]} 29. Qh6+
{[%clk 0:00:03.5]} 29... Kg8 {[%clk 0:00:37.9]} 30. R1d2 {[%clk 0:00:03.4]}
30... Qxa4 {[%clk 0:00:36.3]} 31. Rc7 {[%clk 0:00:02.5]} 31... Bf8 {[%clk
0:00:34.3]} 0-1

[Event "Early-Titled-Tuesday-Blitz-January-23-2024"]
[Site "Chess.com"]
[Date "2024.01.23"]
[Round "5"]
[White "FREZZY23"]
[Black "Titus369"]
[Result "1-0"]
[WhiteElo "2479"]
[BlackElo "2648"]
[TimeControl "180+1"]
[EndTime "8:54:52 PST"]
[Termination "FREZZY23 won by resignation"]

1. d4 {[%clk 0:02:59]} 1... d5 {[%clk 0:02:57.8]} 2. Nf3 {[%clk 0:02:58.8]} 2...
Nf6 {[%clk 0:02:51]} 3. g3 {[%clk 0:02:57.2]} 3... e6 {[%clk 0:02:49]} 4. Bg2
{[%clk 0:02:56.9]} 4... Be7 {[%clk 0:02:49.9]} 5. O-O {[%clk 0:02:56]} 5... O-O
{[%clk 0:02:50.8]} 6. c3 {[%clk 0:02:56]} 6... b5 {[%clk 0:02:46.2]} 7. a4
{[%clk 0:02:51.3]} 7... b4 {[%clk 0:02:43]} 8. cxb4 {[%clk 0:02:48.7]} 8... Bxb4
{[%clk 0:02:43]} 9. Qc2 {[%clk 0:02:46.5]} 9... a5 {[%clk 0:02:41.3]} 10. Bf4
{[%clk 0:02:45.8]} 10... Bd6 {[%clk 0:02:40.5]} 11. Bxd6 {[%clk 0:02:45.5]}
11... cxd6 {[%clk 0:02:38.6]} 12. Rc1 {[%clk 0:02:44.8]} 12... Na6 {[%clk
0:02:37.9]} 13. Nbd2 {[%clk 0:02:44.5]} 13... Ra7 {[%clk 0:02:32.4]} 14. Ne1
{[%clk 0:02:18.7]} 14... Nb4 {[%clk 0:02:29.5]} 15. Qc3 {[%clk 0:02:15.5]} 15...
Ba6 {[%clk 0:02:26.5]} 16. Bf1 {[%clk 0:02:03.3]} 16... Ne4 {[%clk 0:02:23.1]}
17. Nxe4 {[%clk 0:02:02.8]} 17... dxe4 {[%clk 0:02:24]} 18. Nc2 {[%clk
0:01:46.7]} 18... Nd5 {[%clk 0:02:23.5]} 19. Qd2 {[%clk 0:01:41.9]} 19... f5
{[%clk 0:02:20.6]} 20. b4 {[%clk 0:01:37.6]} 20... axb4 {[%clk 0:02:19.6]} 21.
Nxb4 {[%clk 0:01:37.9]} 21... Nxb4 {[%clk 0:02:19]} 22. Qxb4 {[%clk 0:01:38.5]}
22... f4 {[%clk 0:02:18.7]} 23. Rc6 {[%clk 0:01:36.8]} 23... fxg3 {[%clk
0:02:15.5]} 24. fxg3 {[%clk 0:01:30.5]} 24... Qf6 {[%clk 0:02:12.5]} 25. Qxd6
{[%clk 0:01:17.2]} 25... Bb7 {[%clk 0:02:05.2]} 26. Qxe6+ {[%clk 0:01:14.2]}
26... Qxe6 {[%clk 0:01:56.5]} 27. Rxe6 {[%clk 0:01:15.1]} 27... Bd5 {[%clk
0:01:50.9]} 28. Re5 {[%clk 0:01:14.3]} 28... Bc6 {[%clk 0:01:30.4]} 29. a5
{[%clk 0:01:13.5]} 29... e3 {[%clk 0:01:25.2]} 30. Rxe3 {[%clk 0:01:08.4]} 30...
Rd8 {[%clk 0:01:25.4]} 31. Rd3 {[%clk 0:01:06.8]} 31... Be4 {[%clk 0:01:21.2]}
32. Rd2 {[%clk 0:01:04.6]} 32... Rd5 {[%clk 0:01:18.2]} 33. a6 {[%clk
0:01:02.6]} 33... Rd6 {[%clk 0:01:12.8]} 34. e3 {[%clk 0:01:02.5]} 34... Kf8
{[%clk 0:01:08.6]} 35. Rf2+ {[%clk 0:00:57.7]} 35... Ke7 {[%clk 0:01:08.1]} 36.
Rf4 {[%clk 0:00:57.3]} 36... Bc6 {[%clk 0:01:02.5]} 37. Rc1 {[%clk 0:00:51]}
37... Bd7 {[%clk 0:00:54.3]} 38. Rc5 {[%clk 0:00:49.1]} 38... h6 {[%clk
0:00:49.4]} 39. Re5+ {[%clk 0:00:47.3]} 39... Kd8 {[%clk 0:00:49.7]} 40. Rf8+
{[%clk 0:00:46.3]} 40... Kc7 {[%clk 0:00:50.2]} 41. Rc5+ {[%clk 0:00:46.3]}
41... Rc6 {[%clk 0:00:45.5]} 42. Rxc6+ {[%clk 0:00:46]} 42... Kxc6 {[%clk
0:00:45.7]} 43. Rf7 {[%clk 0:00:44.6]} 43... g5 {[%clk 0:00:42]} 44. Bh3 {[%clk
0:00:29.8]} 44... Bxh3 {[%clk 0:00:36.8]} 45. Rxa7 {[%clk 0:00:29.5]} 45... Kb6
{[%clk 0:00:37.7]} 46. Rh7 {[%clk 0:00:28.4]} 1-0